fUSD/lending_fUSD_20250716
["ID","MTS","AMOUNT","RATE_DAILY","PERIOD"]
[372422152,1752637866025,-1000.0,0.00021918,3]
[372422153,1752637866036,-1000.0,0.00021918,3]
[372422154,1752637866053,-1000.0,0.00021918,3]
[372422155,1752637866063,-1000.0,0.00021918,3]
[372422156,1752637866074,-1000.0,0.00021918,3]
[372422157,1752637866084,-736.0,0.00021918,3]
[372422158,1752637866096,-151.0,0.00021918,2]
[372422159,1752637866106,-151.0,0.00021918,2]
[372422160,1752637866115,-151.0,0.00021918,2]
[372422161,1752637866125,-151.0,0.00021918,2]
[372422162,1752637866135,-288.498733,0.00021918,2]
[372422163,1752637866145,-5000.0,0.00021918,2]
[372422164,1752637866156,-200.0,0.00021918,7]
[372422165,1752637866167,-150.0,0.00021918,2]
[372422166,1752637866176,-500.0,0.00021918,2]
[372422167,1752637866185,-500.0,0.00021918,2]
[372422168,1752637866195,-150.0,0.00021918,2]
[372422169,1752637866204,-163.41220569,0.0002192,2]
[372422170,1752637866214,-447.87393831,0.0002192,3]
[372422171,1752637866223,-447.87393831,0.0002192,7]
[372422172,1752637866232,-447.87393831,0.0002192,30]
[372422173,1752637866242,-838.7287696,0.0002192,3]
[372422174,1752637866251,-210.72748344,0.0002192,3]
[372422175,1752637866260,-210.72748344,0.0002192,7]
[372422176,1752637866270,-210.72748344,0.0002192,30]
[372422177,1752637866279,-3752.1437323,0.0002192,2]
[372422178,1752637866289,-3331.71961448,0.00021934,6]
[372422179,1752637866299,-152.0,0.00021945,6]
[372422180,1752637866308,-241.11355937,0.00021954,4]
[372422181,1752637866318,-241.11355937,0.00021954,4]
[372422182,1752637866327,-241.11355937,0.00021954,4]
[372422183,1752637866337,-241.11355937,0.00021954,4]
[372422184,1752637866347,-241.11355937,0.00021954,4]
[372422185,1752637866357,-241.11355937,0.00021954,4]
[372422186,1752637866367,-241.11355937,0.00021954,4]
[372422187,1752637866377,-241.11355937,0.00021954,4]
[372422188,1752637866386,-241.11355937,0.00021954,4]
[372422189,1752637866396,-241.11355937,0.00021954,4]
[372422190,1752637866405,-241.11355937,0.00021954,4]
[372422191,1752637866415,-241.11355937,0.00021954,4]
[372422192,1752637866424,-241.11355937,0.00021954,4]
[372422193,1752637866433,-241.11355937,0.00021954,4]
[372422194,1752637866444,-241.11355937,0.00021954,4]
[372422195,1752637866454,-241.11355937,0.00021954,4]
[372422196,1752637866463,-242.01653799,0.00021954,4]
[372422197,1752637866473,-242.01653799,0.00021954,4]
[372422198,1752637866482,-242.01653799,0.00021954,4]
[372422199,1752637866491,-242.01653799,0.00021954,4]
[372422200,1752637866501,-242.01653799,0.00021954,4]
[372422201,1752637866510,-242.01653799,0.00021954,4]
[372422202,1752637866519,-242.01653799,0.00021954,4]
[372422203,1752637866529,-242.01653799,0.00021954,4]
[372422204,1752637866538,-242.01653799,0.00021954,4]
[372422205,1752637866548,-242.01653799,0.00021954,4]
[372422206,1752637866558,-242.01653799,0.00021954,4]
[372422207,1752637866567,-242.01653799,0.00021954,4]
[372422208,1752637866577,-242.01653799,0.00021954,4]
[372422209,1752637866587,-242.01653799,0.00021954,4]
[372422210,1752637866599,-242.01653799,0.00021954,4]
[372422211,1752637866608,-242.01653799,0.00021954,4]
[372422212,1752637866618,-258.581617,0.00021954,4]
[372422213,1752637866628,-258.581617,0.00021954,4]
[372422214,1752637866639,-258.581617,0.00021954,4]
[372422215,1752637866649,-258.581617,0.00021954,4]
[372422216,1752637866658,-258.581617,0.00021954,4]
[372422217,1752637866667,-258.581617,0.00021954,4]
[372422218,1752637866677,-258.581617,0.00021954,4]
[372422219,1752637866687,-258.581617,0.00021954,4]
[372422220,1752637866697,-258.581617,0.00021954,4]
[372422221,1752637866708,-258.581617,0.00021954,4]
[372422222,1752637866718,-258.581617,0.00021954,4]
[372422223,1752637866728,-258.581617,0.00021954,4]
[372422224,1752637866738,-258.581617,0.00021954,4]
[372422225,1752637866747,-258.581617,0.00021954,4]
[372422226,1752637866758,-258.581617,0.00021954,4]
[372422227,1752637866768,-258.581617,0.00021954,4]
[372422228,1752637866777,-155.76406251,0.00021954,2]
[372422229,1752637866787,-166.75489779,0.00021954,4]
[372422230,1752637866797,-3452.97457316,0.00021954,2]
[372422231,1752637866806,-355.28673022,0.00021954,2]
[372422232,1752637866815,-391.21506496,0.00021954,2]
[372422233,1752637866825,-153.0,0.00021963,2]
[372422234,1752637866834,-153.0,0.00021963,2]
[372422235,1752637866844,-153.0,0.00021963,2]
[372422236,1752637866853,-153.0,0.00021963,2]
[372422237,1752637866862,-153.87333875,0.00021963,2]
[372422238,1752637866872,-500.0,0.00021965,2]
[372422239,1752637866882,-200.49229882,0.00021965,2]
[372422240,1752637866892,-646.0,0.00021965,2]
[372422241,1752637866901,-500.0,0.00021965,2]
[372422242,1752637866911,-200.33870257,0.00021965,2]
[372422243,1752637866920,-517.0,0.00021965,2]
[372422244,1752637866930,-688.0,0.00021965,2]
[372422245,1752637866940,-156.00026797,0.00021965,2]
[372422246,1752637866951,-500.62068923,0.00021973,2]
[372422247,1752637866962,-504.57677426,0.00021973,2]
[372422248,1752637866971,-500.0,0.00021973,2]
[372422249,1752637866981,-504.53778829,0.00021973,2]
[372422250,1752637866992,-500.0,0.00021973,2]
[372422251,1752637867002,-500.0,0.00021973,2]
[372422252,1752637867013,-501.17518061,0.00021973,2]
[372422253,1752637867023,-500.0,0.00021973,2]
[372422254,1752637867035,-503.10552444,0.00021973,2]
[372422255,1752637867046,-159.65964935,0.00021973,2]
[372422256,1752637867056,-503.22822954,0.00021973,2]
[372422257,1752637867066,-503.49336062,0.00021973,2]
[372422258,1752637867076,-504.18779699,0.00021973,2]
[372422259,1752637867087,-500.0,0.00021973,2]
[372422260,1752637867098,-163.1980596,0.00021977,2]
[372422261,1752637867107,-576.48,0.00021999,2]
[372422262,1752637867117,-500.0,0.00021999,2]
[372422263,1752637867127,-725.12,0.00021999,2]
[372422264,1752637867137,-500.0,0.00021999,2]
[372422265,1752637867147,-872.17,0.00021999,2]
[372422266,1752637867158,-500.0,0.00021999,2]
[372422267,1752637867169,-510.33223738,0.00021999,2]
[372422268,1752637867179,-500.0,0.00021999,2]
[372422269,1752637867190,-20000.0,0.00022,4]
[372422270,1752637867201,-5432.86525143,0.00022,4]
[372422271,1752637867210,-3000.0,0.00022,2]
[372422272,1752637867220,-3000.0,0.00022,2]
[372422273,1752637867347,-3000.0,0.00022,2]
[372422274,1752637867356,-2508.25,0.00022,2]
[372422275,1752637867366,-2018.524215,0.00022,2]
[372422276,1752637867376,-151.0,0.00022,7]
[372422277,1752637867386,-5002.66819893,0.00022,2]
[372422278,1752637867395,-2703.0,0.00022,2]
[372422279,1752637867405,-2500.48020032,0.00022,2]
[372422280,1752637867414,-151.0,0.00022,7]
[372422281,1752637867426,-151.0,0.00022,7]
[372422282,1752637867435,-151.0,0.00022,7]
[372422283,1752637867445,-279.144826,0.00022,7]
[372422284,1752637867454,-361.0,0.00022,2]
[372422285,1752637867463,-849.0,0.00022,2]
[372422286,1752637867472,-600.0,0.00022011,10]
[372422287,1752637867482,-600.0,0.00022011,10]
[372422288,1752637867491,-600.0,0.00022011,10]
[372422289,1752637867500,-600.0,0.00022011,10]
[372422290,1752637867509,-600.0,0.00022011,10]
[372422291,1752637867518,-600.0,0.00022011,10]
[372422292,1752637867527,-600.0,0.00022011,10]
[372422293,1752637867536,-600.0,0.00022011,10]
[372422294,1752637867545,-600.0,0.00022011,10]
[372422295,1752637867554,-600.0,0.00022011,10]
[372422296,1752637867563,-600.0,0.00022016,10]
[372422297,1752637867572,-600.0,0.00022016,10]
[372422298,1752637867581,-600.0,0.00022016,10]
[372422299,1752637867590,-600.0,0.00022016,10]
[372422300,1752637867599,-600.0,0.00022016,10]
[372422301,1752637867608,-600.0,0.00022016,10]
[372422302,1752637867618,-600.0,0.00022016,10]
[372422303,1752637867629,-600.0,0.00022016,10]
[372422304,1752637867639,-200.0,0.00022016,10]
[372422305,1752637867648,-447.87393831,0.0002202,10]
[372422306,1752637867657,-210.72748344,0.0002202,10]
[372422307,1752637867667,-500.0,0.00022029,2]
[372422308,1752637867676,-500.0,0.00022029,2]
[372422309,1752637867685,-500.0,0.00022029,2]
[372422310,1752637867695,-500.0,0.00022029,2]
[372422311,1752637867704,-500.0,0.00022029,2]
[372422312,1752637867713,-519.0,0.00022029,2]
[372422313,1752637867723,-241.11355937,0.00022029,4]
[372422314,1752637867733,-242.01653799,0.00022029,4]
[372422315,1752637867742,-258.581617,0.00022029,4]
[372422316,1752637867751,-3331.71961448,0.00022038,6]
[372422317,1752637867761,-1207.9344055,0.00022039,2]
[372422318,1752637867769,-3351.2990604,0.00022039,2]
[372422319,1752637867779,-448.02691758,0.00022044,2]
[372422320,1752637867788,-500.0,0.00022044,2]
[372422321,1752637867797,-610.7,0.00022044,2]
[372422322,1752637867806,-624.89,0.00022044,2]
[372422323,1752637867816,-500.0,0.00022044,2]
[372422324,1752637867826,-500.0,0.00022044,2]
[372422325,1752637867836,-507.0613143,0.00022044,2]
[372422326,1752637867845,-629.05,0.00022044,2]
[372422327,1752637867856,-924.68,0.00022044,2]
[372422328,1752637867865,-169.7,0.00022044,2]
[372422329,1752637867876,-260.14,0.00022045,2]
[372422330,1752637867887,-3386.64,0.00022045,2]
[372422331,1752637867898,-174.826876,0.00022045,7]
[372422332,1752637867908,-174.826876,0.00022045,7]
[372422333,1752637867918,-150.0,0.00022048,2]
[372422334,1752637867930,-104083.7953265,0.00022049,2]
[372422335,1752637867940,-32180.0758068,0.00022049,2]
[372422336,1752637867951,-1438.46,0.00022052,2]
[372422337,1752637867960,-1255.84,0.00022052,2]
[372422338,1752637867969,-500.0,0.00022052,2]
[372422339,1752637867980,-151.0,0.00022053,7]
[372422340,1752637867990,-152.879025,0.00022053,7]
[372422341,1752637867999,-210.074091,0.00022053,7]
[372422342,1752637868010,-210.074091,0.00022053,7]
[372422343,1752637868019,-151.0,0.00022053,7]
[372422344,1752637868029,-150.8,0.00022053,3]
[372422345,1752637868040,-500.0,0.00022053,2]
[372422346,1752637868049,-500.0,0.00022053,2]
[372422347,1752637868058,-500.0,0.00022053,2]
[372422348,1752637868068,-500.0,0.00022053,2]
[372422349,1752637868077,-500.0,0.00022053,2]
[372422350,1752637868086,-500.0,0.00022053,2]
[372422351,1752637868095,-500.0,0.00022053,2]
[372422352,1752637868104,-500.0,0.00022053,2]
[372422353,1752637868116,-500.0,0.00022053,2]
[372422354,1752637868128,-500.0,0.00022053,2]
[372422355,1752637868138,-265.4330037,0.00022053,2]
[372422356,1752637868147,-576.48,0.00022053,2]
[372422357,1752637868156,-576.48,0.00022053,2]
[372422358,1752637868165,-576.48,0.00022053,2]
[372422359,1752637868174,-576.48,0.00022053,2]
[372422360,1752637868184,-576.48,0.00022053,2]
[372422361,1752637868193,-576.48,0.00022053,2]
[372422362,1752637868205,-576.48,0.00022053,2]
[372422363,1752637868214,-576.48,0.00022053,2]
[372422364,1752637868223,-576.48,0.00022053,2]
[372422365,1752637868233,-576.48,0.00022053,2]
[372422366,1752637868243,-576.48,0.00022053,2]
[372422367,1752637868253,-576.49076354,0.00022053,2]
[372422368,1752637868263,-610.7,0.00022053,2]
[372422369,1752637868272,-610.7,0.00022053,2]
[372422370,1752637868281,-610.7,0.00022053,2]
[372422371,1752637868290,-610.7,0.00022053,2]
[372422372,1752637868300,-610.7,0.00022053,2]
[372422373,1752637868309,-610.7,0.00022053,2]
[372422374,1752637868318,-610.7,0.00022053,2]
[372422375,1752637868327,-610.7,0.00022053,2]
[372422376,1752637868336,-610.7,0.00022053,2]
[372422377,1752637868346,-610.7,0.00022053,2]
[372422378,1752637868355,-610.7,0.00022053,2]
[372422379,1752637868364,-610.8885131,0.00022053,2]
[372422380,1752637868373,-1438.46,0.00022053,2]
[372422381,1752637868383,-1438.46,0.00022053,2]
[372422382,1752637868393,-1438.46,0.00022053,2]
[372422383,1752637868403,-1438.46,0.00022053,2]
[372422384,1752637868412,-1438.46,0.00022053,2]
[372422385,1752637868422,-1438.46,0.00022053,2]
[372422386,1752637868432,-1438.46,0.00022053,2]
[372422387,1752637868442,-1438.46,0.00022053,2]
[372422388,1752637868453,-1438.46,0.00022053,2]
[372422389,1752637868462,-1438.46,0.00022053,2]
[372422390,1752637868471,-1438.46,0.00022053,2]
[372422391,1752637868482,-1438.62422749,0.00022053,2]
[372422392,1752637868491,-500.0,0.00022053,2]
[372422393,1752637868501,-500.0,0.00022053,2]
[372422394,1752637868511,-500.0,0.00022053,2]
[372422395,1752637868521,-500.0,0.00022053,2]
[372422396,1752637868531,-305.64800004,0.00022053,2]
[372422397,1752637868540,-602.5,0.00022053,2]
[372422398,1752637868550,-602.5,0.00022053,2]
[372422399,1752637868561,-602.5,0.00022053,2]
[372422400,1752637868571,-602.5,0.00022053,2]
[372422401,1752637868581,-602.5,0.00022053,2]
[372422402,1752637868592,-602.5,0.00022053,2]
[372422403,1752637868603,-602.5,0.00022053,2]
[372422404,1752637868612,-602.5,0.00022053,2]
[372422405,1752637868622,-602.5,0.00022053,2]
[372422406,1752637868632,-602.5,0.00022053,2]
[372422407,1752637868642,-602.5,0.00022053,2]
[372422408,1752637868652,-602.5,0.00022053,2]
[372422409,1752637868661,-602.50180759,0.00022053,2]
[372422410,1752637868671,-725.12,0.00022053,2]
[372422411,1752637868683,-725.12,0.00022053,2]
[372422412,1752637868694,-725.12,0.00022053,2]
[372422413,1752637868704,-725.12,0.00022053,2]
[372422414,1752637868713,-725.12,0.00022053,2]
[372422415,1752637868723,-725.12,0.00022053,2]
[372422416,1752637868734,-725.12,0.00022053,2]
[372422417,1752637868744,-725.12,0.00022053,2]
[372422418,1752637868753,-725.12,0.00022053,2]
[372422419,1752637868772,-725.12,0.00022053,2]
[372422420,1752637868782,-725.12,0.00022053,2]
[372422421,1752637868794,-725.31704579,0.00022053,2]
[372422422,1752637868805,-461.34439915,0.00022053,2]
[372422423,1752637868814,-624.89,0.00022053,2]
[372422424,1752637868825,-624.89,0.00022053,2]
[372422425,1752637868834,-624.89,0.00022053,2]
[372422426,1752637868842,-624.89,0.00022053,2]
[372422427,1752637868852,-624.89,0.00022053,2]
[372422428,1752637868864,-624.89,0.00022053,2]
[372422429,1752637868874,-624.89,0.00022053,2]
[372422430,1752637868886,-624.89,0.00022053,2]
[372422431,1752637868896,-624.89,0.00022053,2]
[372422432,1752637868905,-624.89,0.00022053,2]
[372422433,1752637868915,-624.89,0.00022053,2]
[372422434,1752637868926,-625.11830149,0.00022053,2]
[372422435,1752637868936,-400.57,0.00022053,2]
[372422436,1752637868947,-500.0,0.00022053,2]
[372422437,1752637868957,-500.0,0.00022053,2]
[372422438,1752637868966,-500.0,0.00022053,2]
[372422439,1752637868977,-500.0,0.00022053,2]
[372422440,1752637868987,-500.0,0.00022053,2]
[372422441,1752637868996,-500.0,0.00022053,2]
[372422442,1752637869006,-500.0,0.00022053,2]
[372422443,1752637869016,-500.0,0.00022053,2]
[372422444,1752637869026,-500.0,0.00022053,2]
[372422445,1752637869042,-500.0,0.00022053,2]
[372422446,1752637869052,-500.0,0.00022053,2]
[372422447,1752637869061,-475.88166064,0.00022053,2]
[372422448,1752637869071,-1255.84,0.00022053,2]
[372422449,1752637869083,-1255.84,0.00022053,2]
[372422450,1752637869092,-1255.84,0.00022053,2]
[372422451,1752637869102,-1255.84,0.00022053,2]
[372422452,1752637869111,-1255.84,0.00022053,2]
[372422453,1752637869122,-1255.84,0.00022053,2]
[372422454,1752637869133,-1255.84,0.00022053,2]
[372422455,1752637869143,-1255.84,0.00022053,2]
[372422456,1752637869153,-1255.84,0.00022053,2]
[372422457,1752637869163,-1255.84,0.00022053,2]
[372422458,1752637869173,-1255.84,0.00022053,2]
[372422459,1752637869182,-1256.0,0.00022053,2]
[372422460,1752637869191,-872.17,0.00022053,2]
[372422461,1752637869200,-872.17,0.00022053,2]
[372422462,1752637869209,-872.17,0.00022053,2]
[372422463,1752637869219,-872.17,0.00022053,2]
[372422464,1752637869228,-872.17,0.00022053,2]
[372422465,1752637869237,-872.17,0.00022053,2]
[372422466,1752637869247,-872.17,0.00022053,2]
[372422467,1752637869256,-872.17,0.00022053,2]
[372422468,1752637869265,-872.17,0.00022053,2]
[372422469,1752637869275,-872.17,0.00022053,2]
[372422470,1752637869284,-872.17,0.00022053,2]
[372422471,1752637869293,-872.38,0.00022053,2]
[372422472,1752637869302,-629.05,0.00022053,2]
[372422473,1752637869311,-629.05,0.00022053,2]
[372422474,1752637869321,-629.05,0.00022053,2]
[372422475,1752637869331,-629.05,0.00022053,2]
[372422476,1752637869341,-629.05,0.00022053,2]
[372422477,1752637869350,-629.05,0.00022053,2]
[372422478,1752637869359,-629.05,0.00022053,2]
[372422479,1752637869369,-629.05,0.00022053,2]
[372422480,1752637869378,-629.05,0.00022053,2]
[372422481,1752637869387,-629.05,0.00022053,2]
[372422482,1752637869397,-629.05,0.00022053,2]
[372422483,1752637869407,-629.13025427,0.00022053,2]
[372422484,1752637869416,-500.0,0.00022053,2]
[372422485,1752637869428,-500.0,0.00022053,2]
[372422486,1752637869437,-500.0,0.00022053,2]
[372422487,1752637869447,-500.0,0.00022053,2]
[372422488,1752637869456,-500.0,0.00022053,2]
[372422489,1752637869467,-500.0,0.00022053,2]
[372422490,1752637869477,-500.0,0.00022053,2]
[372422491,1752637869487,-500.0,0.00022053,2]
[372422492,1752637869496,-500.0,0.00022053,2]
[372422493,1752637869507,-500.0,0.00022053,2]
[372422494,1752637869516,-500.0,0.00022053,2]
[372422495,1752637869526,-332.10346617,0.00022053,2]
[372422496,1752637869535,-924.68,0.00022053,2]
[372422497,1752637869549,-924.68,0.00022053,2]
[372422498,1752637869568,-924.68,0.00022053,2]
[372422499,1752637869585,-924.68,0.00022053,2]
[372422500,1752637869595,-924.68,0.00022053,2]
[372422501,1752637869604,-924.68,0.00022053,2]
[372422502,1752637869613,-924.68,0.00022053,2]
[372422503,1752637869623,-924.68,0.00022053,2]
[372422504,1752637869632,-924.68,0.00022053,2]
[372422505,1752637869643,-924.68,0.00022053,2]
[372422506,1752637869654,-924.68,0.00022053,2]
[372422507,1752637869663,-924.69447794,0.00022053,2]
[372422508,1752637869673,-500.0,0.00022053,2]
[372422509,1752637869683,-500.0,0.00022053,2]
[372422510,1752637869693,-500.0,0.00022053,2]
[372422511,1752637869703,-500.0,0.00022053,2]
[372422512,1752637869713,-500.0,0.00022053,2]
[372422513,1752637869723,-500.0,0.00022053,2]
[372422514,1752637869733,-500.0,0.00022053,2]
[372422515,1752637869742,-500.0,0.00022053,2]
[372422516,1752637869751,-382.39420905,0.00022053,2]
[372422517,1752637869761,-150.0,0.00022053,2]
[372422518,1752637869771,-150.0,0.00022053,2]
[372422519,1752637869780,-150.0,0.00022053,2]
[372422520,1752637869790,-150.0,0.00022053,2]
[372422521,1752637869799,-150.0,0.00022054,2]
[372422522,1752637869808,-488.16164168,0.00022054,2]
[372422523,1752637869819,-151.0,0.00022054,7]
[372422524,1752637869829,-151.0,0.00022054,7]
[372422525,1752637869839,-151.0,0.00022054,7]
[372422526,1752637869850,-151.0,0.00022054,7]
[372422527,1752637869859,-151.0,0.00022054,7]
[372422528,1752637869869,-237.754216,0.00022054,7]
[372422529,1752637869879,-460.0,0.00022054,2]
[372422530,1752637869894,-460.0,0.00022054,2]
[372422531,1752637869904,-460.0,0.00022054,2]
[372422532,1752637869913,-460.0,0.00022054,2]
[372422533,1752637869923,-460.0,0.00022054,2]
[372422534,1752637869933,-460.0,0.00022054,2]
[372422535,1752637869943,-460.0,0.00022054,2]
[372422536,1752637869956,-460.0,0.00022054,2]
[372422537,1752637869966,-460.0,0.00022054,2]
[372422538,1752637869976,-460.0,0.00022054,2]
[372422539,1752637869985,-460.0,0.00022054,2]
[372422540,1752637869995,-1149.02,0.00022054,2]
[372422541,1752637870005,-1101.15,0.00022054,2]
[372422542,1752637870015,-1001.36,0.00022054,2]
[372422543,1752637870028,-460.0,0.00022054,2]
[372422544,1752637870041,-460.0,0.00022054,2]
[372422545,1752637870050,-613.04,0.00022054,2]
[372422546,1752637870061,-613.04,0.00022054,2]
[372422547,1752637870071,-460.0,0.00022054,2]
[372422548,1752637870081,-460.0,0.00022054,2]
[372422549,1752637870091,-1769.868997,0.00022054,2]
[372422550,1752637870100,-2926.473938,0.00022054,2]
[372422551,1752637870112,-4003.034026,0.00022054,2]
[372422552,1752637870123,-658.49,0.00022054,2]
[372422553,1752637870132,-490.62,0.00022054,2]
[372422554,1752637870141,-470.18,0.00022054,2]
[372422555,1752637870152,-460.0,0.00022054,2]
[372422556,1752637870162,-210.074091,0.00022054,7]
[372422557,1752637870171,-210.074091,0.00022054,7]
[372422558,1752637870181,-210.074091,0.00022054,7]
[372422559,1752637870191,-210.074091,0.00022054,7]
[372422560,1752637870200,-210.074091,0.00022054,7]
[372422561,1752637870209,-210.074091,0.00022054,7]
[372422562,1752637870219,-210.074091,0.00022054,7]
[372422563,1752637870228,-210.074089,0.00022054,7]
[372422564,1752637870238,-460.0,0.00022054,2]
[372422565,1752637870247,-460.0,0.00022054,2]
[372422566,1752637870258,-590.45,0.00022054,2]
[372422567,1752637870268,-590.45,0.00022054,2]
[372422568,1752637870280,-151.0,0.00022054,7]
[372422569,1752637870289,-151.0,0.00022054,7]
[372422570,1752637870299,-172.448359,0.00022054,7]
[372422571,1752637870309,-460.0,0.00022054,2]
[372422572,1752637870318,-460.0,0.00022054,2]
[372422573,1752637870328,-460.0,0.00022054,2]
[372422574,1752637870339,-460.0,0.00022054,2]
[372422575,1752637870348,-951.43,0.00022054,2]
[372422576,1752637870358,-460.0,0.00022054,2]
[372422577,1752637870367,-503.53,0.00022054,2]
[372422578,1752637870378,-460.0,0.00022054,2]
[372422579,1752637870390,-463.54386585,0.00022054,2]
[372422580,1752637870400,-525.36907977,0.00022054,2]
[372422581,1752637870410,-476.42212776,0.00022054,2]
[372422582,1752637870419,-220.02074381,0.00022054,2]
[372422583,1752637870429,-368.48692352,0.00022054,2]
[372422584,1752637872101,-3031.1,0.00021917,2]
[372422585,1752637872111,-86.5,0.00021917,2]
[372422587,1752637955503,156.65,0.00013699,2]
[372422589,1752637971034,500.0,0.0003013,120]
[372422590,1752638004971,500.0,0.0003013,120]
[372422594,1752638557380,2027.978,0.00017516,2]
[372422623,1752638884880,948.05633489,0.00015,2]
[372422624,1752638884907,4051.94366511,0.00015,2]
[372422625,1752638890956,5000.0,0.00016,2]
[372422877,1752638898039,5000.0,0.00017,2]
[372422882,1752638913867,5000.0,0.00014,2]
[372422977,1752638998574,514.0,0.00017458,2]
[372422979,1752639031836,-878.94188727,0.00018,2]
[372422980,1752639031848,-144.05811273,0.00018,2]
[372422981,1752639031858,-162.17476206,0.00018358,2]
[372422982,1752639031867,-250.0,0.00019469,2]
[372422983,1752639031877,-169.13,0.00019987,2]
[372422984,1752639031886,-1298.7787788,0.0002,2]
[372422985,1752639031897,-2721.25687592,0.0002,2]
[372422986,1752639031909,-979.96434528,0.0002,2]
[372422987,1752639031918,-250.0,0.00020139,2]
[372422988,1752639031928,-250.0,0.00020304,2]
[372422989,1752639031938,-236.97311461,0.00020417,2]
[372422990,1752639031965,-1515.49999999,0.00020417,2]
[372422991,1752639031976,-377.93630013,0.00020417,2]
[372422992,1752639031987,-452.48058527,0.00020417,2]
[372422993,1752639032003,-128.5504204,0.00020545,2]
[372422994,1752639032018,-402.7795796,0.00020545,2]
[372422995,1752639032027,-284.31011892,0.00020579,2]
[372422996,1752639032072,-431.68988108,0.00020579,2]
[372423008,1752639032418,-1000.0,0.0002058,2]
[372423009,1752639032428,-300.0,0.00020589,2]
[372423010,1752639032438,-190.0,0.0002059,7]
[372423011,1752639032447,-10741.46,0.0002059,2]
[372423012,1752639032456,-180.64,0.00020618,2]
[372423013,1752639032466,-508.81171118,0.00020635,2]
[372423014,1752639032475,-23900.0,0.00020647,2]
[372423015,1752639032485,-1828.27796569,0.00020669,2]
[372423016,1752639032496,-2583.02,0.00020691,2]
[372423017,1752639032506,-414.47,0.00020707,2]
[372423018,1752639032519,-200.0,0.00020708,2]
[372423019,1752639032529,-514.0,0.00020731,6]
[372423020,1752639032539,-203.73,0.00020741,2]
[372423021,1752639032548,-22739.11,0.00020758,2]
[372423022,1752639032559,-207.4,0.00020839,2]
[372423023,1752639032569,-2514.95640338,0.000209,4]
[372423024,1752639032580,-151.476339,0.00021,2]
[372423025,1752639032592,-10969.42836397,0.00021,2]
[372423026,1752639032601,-1223.0,0.00021,2]
[372423027,1752639032611,-2514.95640318,0.00021003,4]
[372423028,1752639032621,-2514.95640318,0.00021107,4]
[372423029,1752639032630,-151.0,0.0002121,2]
[372423030,1752639032640,-152.930757,0.0002121,2]
[372423031,1752639032649,-2514.95640318,0.0002121,4]
[372423032,1752639032659,-168.21,0.00021243,2]
[372423033,1752639032668,-5041.93883,0.0002125,30]
[372423034,1752639032678,-475.0,0.00021264,2]
[372423035,1752639032688,-2514.95640318,0.00021314,5]
[372423036,1752639032697,-168.0,0.00021389,2]
[372423037,1752639032707,-475.0,0.00021408,2]
[372423038,1752639032716,-151.755942,0.00021417,2]
[372423039,1752639032725,-2514.95640318,0.00021417,5]
[372423040,1752639032736,-9899.0,0.00021463,7]
[372423041,1752639032747,-447.87393831,0.00021463,7]
[372423042,1752639032757,-2514.95640318,0.00021521,5]
[372423043,1752639032767,-168.0,0.0002154,2]
[372423044,1752639032777,-569.0,0.00021588,2]
[372423045,1752639032786,-569.0,0.00021592,2]